[Event "SS Manhem Chess Week 2022: Goteborg Open"]
[Site "Schackcentrum, Vegagatan 20, Gothenburg, Sweden"]
[Date "2022.08.14"]
[Round "7.10"]
[White "Josefsson, Ivar"]
[Black "Degerfeldt, Sven"]
[Result "1-0"]
[TimeControl "15 minutes + 5 seconds per move from move one (Round 1 - 4) / 90 minutes + 30 seconds per move from move one (Round 5 - 8)"]
[WhiteFideId "1766040"]
[BlackFideId "1717430"]
[WhiteElo "1565"]
[BlackElo "1842"]

1. d4 {[%clk 01:30:58]} {[%emt 00:00:01]} d5 {[%clk 01:30:25]} {[%emt
00:00:35]} 2. c4 {[%clk 01:31:23]} {[%emt 00:00:06]} e6 {[%clk 01:30:46]}
{[%emt 00:00:08]} 3. Nc3 {[%clk 01:31:47]} {[%emt 00:00:07]} a6 {[%clk
01:30:20]} {[%emt 00:00:56]} 4. cxd5 {[%clk 01:32:10]} {[%emt 00:00:08]} exd5
{[%clk 01:30:42]} {[%emt 00:00:07]} 5. Bf4 {[%clk 01:32:33]} {[%emt 00:00:06]}
Nf6 {[%clk 01:30:54]} {[%emt 00:00:18]} 6. e3 {[%clk 01:32:57]} {[%emt
00:00:07]} Be7 {[%clk 01:20:48]} {[%emt 00:10:36]} 7. Bd3 {[%clk 01:33:11]}
{[%emt 00:00:16]} c6 {[%clk 01:18:04]} {[%emt 00:03:13]} 8. Nge2 {[%clk
01:32:27]} {[%emt 00:01:15]} Be6 {[%clk 01:15:26]} {[%emt 00:03:07]} 9. O-O
{[%clk 01:29:35]} {[%emt 00:03:23]} O-O {[%clk 01:15:03]} {[%emt 00:00:53]} 10.
Qc2 {[%clk 01:29:12]} {[%emt 00:00:54]} Nbd7 {[%clk 01:14:43]} {[%emt
00:00:49]} 11. f3 {[%clk 01:27:35]} {[%emt 00:02:06]} c5 {[%clk 01:13:07]}
{[%emt 00:02:06]} 12. dxc5 {[%clk 01:26:43]} {[%emt 00:01:23]} Nxc5 {[%clk
01:13:27]} {[%emt 00:00:10]} 13. Rfd1 {[%clk 01:23:50]} {[%emt 00:03:23]} Nxd3
{[%clk 01:08:31]} {[%emt 00:05:26]} 14. Qxd3 {[%clk 01:22:48]} {[%emt
00:01:32]} b5 {[%clk 01:08:07]} {[%emt 00:00:53]} 15. Nd4 {[%clk 01:17:44]}
{[%emt 00:05:33]} Qb6 {[%clk 01:06:07]} {[%emt 00:02:30]} 16. Rac1 {[%clk
01:12:59]} {[%emt 00:05:16]} Rac8 {[%clk 01:06:09]} {[%emt 00:00:28]} 17. Bg3
{[%clk 01:10:36]} {[%emt 00:02:53]} Rfd8 {[%clk 01:05:09]} {[%emt 00:01:30]} 18.
Nce2 {[%clk 01:07:08]} {[%emt 00:03:59]} Nd7 {[%clk 01:00:36]} {[%emt
00:05:01]} 19. Rxc8 {[%clk 00:55:28]} {[%emt 00:12:11]} Rxc8 {[%clk 01:00:46]}
{[%emt 00:00:19]} 20. Bf2 {[%clk 00:50:52]} {[%emt 00:05:06]} Nc5 {[%clk
00:54:21]} {[%emt 00:06:55]} 21. Qd2 {[%clk 00:50:48]} {[%emt 00:00:34]} Qd6
{[%clk 00:52:49]} {[%emt 00:02:01]} 22. Nf4 {[%clk 00:48:25]} {[%emt 00:02:54]}
Bg5 {[%clk 00:42:38]} {[%emt 00:10:42]} 23. Bg3 {[%clk 00:45:14]} {[%emt
00:03:40]} Bxf4 {[%clk 00:42:00]} {[%emt 00:01:08]} 24. Bxf4 {[%clk 00:45:35]}
{[%emt 00:00:09]} Qd7 {[%clk 00:41:11]} {[%emt 00:01:18]} 25. Nc2 {[%clk
00:40:40]} {[%emt 00:05:26]} Qb7 {[%clk 00:38:47]} {[%emt 00:02:53]} 26. Nb4
{[%clk 00:38:10]} {[%emt 00:03:00]} Rd8 {[%clk 00:37:30]} {[%emt 00:01:47]} 27.
Qd4 {[%clk 00:35:33]} {[%emt 00:03:08]} Qb6 {[%clk 00:33:08]} {[%emt 00:04:52]}
28. Rc1 {[%clk 00:34:39]} {[%emt 00:01:24]} Na4 {[%clk 00:27:03]} {[%emt
00:06:34]} 29. Qxb6 {[%clk 00:29:07]} {[%emt 00:06:03]} Nxb6 {[%clk 00:27:24]}
{[%emt 00:00:09]} 30. b3 {[%clk 00:28:03]} {[%emt 00:01:34]} h6 {[%clk
00:26:45]} {[%emt 00:01:09]} 31. Rc6 {[%clk 00:26:00]} {[%emt 00:02:33]} a5
{[%clk 00:24:13]} {[%emt 00:03:03]} 32. Rxb6 {[%clk 00:23:45]} {[%emt
00:02:45]} axb4 {[%clk 00:24:30]} {[%emt 00:00:13]} 33. Rxb5 {[%clk 00:23:54]}
{[%emt 00:00:21]} Ra8 {[%clk 00:23:43]} {[%emt 00:01:16]} 34. Rb8+ {[%clk
00:23:56]} {[%emt 00:00:29]} Rxb8 {[%clk 00:24:03]} {[%emt 00:00:10]} 35. Bxb8
{[%clk 00:24:20]} {[%emt 00:00:06]} Bf5 {[%clk 00:24:24]} {[%emt 00:00:09]} 36.
Bd6 {[%clk 00:23:28]} {[%emt 00:01:22]} Bb1 {[%clk 00:24:40]} {[%emt 00:00:13]}
37. a4 {[%clk 00:23:43]} {[%emt 00:00:15]} bxa3 {[%clk 00:24:46]} {[%emt
00:00:25]} 38. Bxa3 {[%clk 00:24:03]} {[%emt 00:00:10]} Ba2 {[%clk 00:24:58]}
{[%emt 00:00:18]} 39. b4 {[%clk 00:24:24]} {[%emt 00:00:09]} Bc4 {[%clk
00:25:21]} {[%emt 00:00:07]} 40. Kf2 {[%clk 00:24:10]} {[%emt 00:00:44]} g6
{[%clk 00:24:38]} {[%emt 00:01:13]} 41. Ke1 {[%clk 00:24:10]} {[%emt 00:00:31]}
Kf8 {[%clk 00:23:28]} {[%emt 00:01:39]} 42. Kd2 {[%clk 00:21:57]} {[%emt
00:02:43]} Ke8 {[%clk 00:23:36]} {[%emt 00:00:21]} 43. Kc3 {[%clk 00:22:20]}
{[%emt 00:00:07]} Bf1 {[%clk 00:22:21]} {[%emt 00:01:45]} 44. g3 {[%clk
00:22:36]} {[%emt 00:00:14]} Bg2 {[%clk 00:22:28]} {[%emt 00:00:23]} 45. f4
{[%clk 00:22:58]} {[%emt 00:00:08]} Kd7 {[%clk 00:22:38]} {[%emt 00:00:19]} 46.
b5 {[%clk 00:22:35]} {[%emt 00:00:53]} Bf1 {[%clk 00:09:40]} {[%emt 00:06:10]}
47. Kb4 {[%clk 00:22:47]} {[%emt 00:07:37]} Kc7 {[%clk 00:08:00]} {[%emt
00:02:09]} 48. Kc5 {[%clk 00:20:42]} {[%emt 00:02:35]} Kb7 {[%clk 00:05:56]}
{[%emt 00:02:34]} 49. Bb2 {[%clk 00:20:54]} {[%emt 00:00:18]} h5 {[%clk
00:06:11]} {[%emt 00:00:14]} 50. Bd4 {[%clk 00:21:13]} {[%emt 00:00:11]} Kc8
{[%clk 00:02:39]} {[%emt 00:04:03]} 51. Kc6 {[%clk 00:21:09]} {[%emt 00:00:35]}
Be2 {[%clk 00:02:08]} {[%emt 00:01:00]} 52. b6 {[%clk 00:21:13]} {[%emt
00:00:27]} Ba6 {[%clk 00:02:27]} {[%emt 00:00:09]} 53. Kxd5 {[%clk 00:21:22]}
{[%emt 00:00:21]} Kd7 {[%clk 00:02:44]} {[%emt 00:00:13]} 54. Ke5 {[%clk
00:20:00]} {[%emt 00:01:52]} Bc4 {[%clk 00:02:38]} {[%emt 00:00:36]} 55. e4
{[%clk 00:14:55]} {[%emt 00:05:34]} Kc6 {[%clk 00:01:36]} {[%emt 00:01:33]} 56.
f5 {[%clk 00:15:04]} {[%emt 00:00:21]} gxf5 {[%clk 00:01:56]} {[%emt 00:00:10]}
57. Kxf5 {[%clk 00:15:03]} {[%emt 00:00:31]} Be2 {[%clk 00:01:13]} {[%emt
00:01:12]} 58. e5 {[%clk 00:14:27]} {[%emt 00:01:07]} Bg4+ {[%clk 00:01:13]}
{[%emt 00:00:29]} 59. Kg5 {[%clk 00:12:54]} {[%emt 00:02:04]} Kb7 {[%clk
00:01:32]} {[%emt 00:00:10]} 60. Kf6 {[%clk 00:12:59]} {[%emt 00:00:26]} Be6
{[%clk 00:01:54]} {[%emt 00:00:08]} 61. h3 {[%clk 00:13:04]} {[%emt 00:00:25]}
Kc6 {[%clk 00:01:51]} {[%emt 00:00:33]} 62. g4 {[%clk 00:12:53]} {[%emt
00:00:41]} hxg4 {[%clk 00:02:09]} {[%emt 00:00:12]} 63. hxg4 {[%clk 00:13:14]}
{[%emt 00:00:10]} Bc4 {[%clk 00:00:45]} {[%emt 00:01:54]} 64. g5 {[%clk
00:13:32]} {[%emt 00:00:12]} Bb3 {[%clk 00:01:01]} {[%emt 00:00:14]} 65. g6
{[%clk 00:13:27]} {[%emt 00:00:34]} fxg6 {[%clk 00:01:06]} {[%emt 00:00:25]} 66.
Kxg6 {[%clk 00:13:53]} {[%emt 00:00:04]} Kd7 {[%clk 00:00:39]} {[%emt
00:00:56]} 67. Kf6 {[%clk 00:13:32]} {[%emt 00:00:52]} Bd5 {[%clk 00:00:55]}
{[%emt 00:00:14]} 68. Be3 {[%clk 00:13:40]} {[%emt 00:00:21]} Ke8 {[%clk
00:01:03]} {[%emt 00:00:22]} 69. e6 {[%clk 00:12:57]} {[%emt 00:01:14]} Bb7
{[%clk 00:01:21]} {[%emt 00:00:12]} 70. Bc5 {[%clk 00:13:09]} {[%emt 00:00:17]}
Bg2 {[%clk 00:01:30]} {[%emt 00:00:21]} 71. Ke5 {[%clk 00:13:23]} {[%emt
00:00:17]} Bb7 {[%clk 00:00:42]} {[%emt 00:01:18]} 72. Kd6 {[%clk 00:13:47]}
{[%emt 00:00:06]} Kd8 {[%clk 00:00:50]} {[%emt 00:00:22]} 73. e7+ {[%clk
00:14:03]} {[%emt 00:00:14]} Ke8 {[%clk 00:01:12]} {[%emt 00:00:08]} 74. Kc7
{[%clk 00:14:24]} {[%emt 00:00:08]} Be4 {[%clk 00:01:30]} {[%emt 00:00:11]} 75.
b7 {[%clk 00:14:46]} {[%emt 00:00:09]} Bxb7 {[%clk 00:01:41]} {[%emt 00:00:19]}
76. Kxb7 {[%clk 00:15:11]} {[%emt 00:00:05]} Kd7 {[%clk 00:02:04]} {[%emt
00:00:08]} 77. Bb4 {[%clk 00:15:27]} {[%emt 00:00:15]} 1-0

[Event "SS Manhem Chess Week 2022: Goteborg Open"]
[Site "Schackcentrum, Vegagatan 20, Gothenburg, Sweden"]
[Date "2022.08.14"]
[Round "7.11"]
[White "Mohammed, Safian Haj"]
[Black "Shchetinin, Oleg"]
[Result "1-0"]
[TimeControl "15 minutes + 5 seconds per move from move one (Round 1 - 4) / 90 minutes + 30 seconds per move from move one (Round 5 - 8)"]
[WhiteFideId "1729276"]
[BlackFideId "1740210"]
[WhiteElo "1794"]
[BlackElo "1643"]

1. e4 {[%clk 01:30:54]} {[%emt 00:00:05]} Nf6 {[%clk 01:30:50]} {[%emt
00:00:11]} 2. e5 {[%clk 01:31:10]} {[%emt 00:00:14]} Nd5 {[%clk 01:31:15]}
{[%emt 00:00:05]} 3. c4 {[%clk 01:31:17]} {[%emt 00:00:23]} Nb6 {[%clk
01:31:40]} {[%emt 00:00:05]} 4. d4 {[%clk 01:31:26]} {[%emt 00:00:21]} d6
{[%clk 01:32:06]} {[%emt 00:00:05]} 5. f4 {[%clk 01:31:19]} {[%emt 00:00:37]}
dxe5 {[%clk 01:30:32]} {[%emt 00:02:05]} 6. fxe5 {[%clk 01:31:37]} {[%emt
00:00:11]} e6 {[%clk 01:29:51]} {[%emt 00:01:11]} 7. Be3 {[%clk 01:30:39]}
{[%emt 00:01:27]} Be7 {[%clk 01:25:47]} {[%emt 00:04:35]} 8. Nf3 {[%clk
01:30:41]} {[%emt 00:00:28]} O-O {[%clk 01:22:57]} {[%emt 00:03:20]} 9. Nc3
{[%clk 01:30:46]} {[%emt 00:00:25]} Bh4+ {[%clk 01:17:11]} {[%emt 00:06:15]} 10.
Nxh4 {[%clk 01:30:26]} {[%emt 00:00:50]} Qxh4+ {[%clk 01:17:34]} {[%emt
00:00:07]} 11. Bf2 {[%clk 01:30:35]} {[%emt 00:00:21]} Qg5 {[%clk 01:16:07]}
{[%emt 00:01:57]} 12. h4 {[%clk 01:30:40]} {[%emt 00:00:24]} Qe7 {[%clk
01:15:52]} {[%emt 00:00:46]} 13. Bd3 {[%clk 01:29:41]} {[%emt 00:01:29]} Rd8
{[%clk 01:10:45]} {[%emt 00:05:37]} 14. Qh5 {[%clk 01:29:37]} {[%emt 00:00:35]}
g6 {[%clk 01:10:59]} {[%emt 00:00:17]} 15. Qh6 {[%clk 01:29:43]} {[%emt
00:00:23]} Qf8 {[%clk 01:10:42]} {[%emt 00:00:47]} 16. Qf4 {[%clk 01:29:09]}
{[%emt 00:01:03]} Nc6 {[%clk 00:53:47]} {[%emt 00:17:26]} 17. h5 {[%clk
01:27:59]} {[%emt 00:01:39]} Ne7 {[%clk 00:42:00]} {[%emt 00:12:18]} 18. Ne4
{[%clk 01:26:27]} {[%emt 00:02:01]} Qg7 {[%clk 00:37:34]} {[%emt 00:04:57]} 19.
Nf6+ {[%clk 01:26:10]} {[%emt 00:00:46]} Kf8 {[%clk 00:36:57]} {[%emt
00:01:07]} 20. hxg6 {[%clk 01:26:30]} {[%emt 00:00:09]} Nxg6 {[%clk 00:37:14]}
{[%emt 00:00:14]} 21. Bxg6 {[%clk 01:26:36]} {[%emt 00:00:23]} Qxg6 {[%clk
00:37:19]} {[%emt 00:00:26]} 22. Rxh7 {[%emt 00:10:16]} Nd7 {[%clk 00:23:33]}
{[%emt 00:08:29]} 23. Rh6 {[%clk 01:10:58]} {[%emt 00:12:09]} Qf5 {[%clk
00:13:30]} {[%emt 00:10:34]} 24. Qh4 {[%clk 01:11:09]} {[%emt 00:00:18]} Nxf6
{[%clk 00:12:37]} {[%emt 00:01:24]} 25. exf6 {[%clk 01:07:19]} {[%emt
00:04:22]} Ke8 {[%clk 00:12:57]} {[%emt 00:00:08]} 26. O-O-O {[%clk 01:06:49]}
{[%emt 00:01:00]} c6 {[%clk 00:11:51]} {[%emt 00:01:36]} 27. Rh5 {[%clk
01:06:32]} {[%emt 00:00:46]} Qg6 {[%clk 00:11:44]} {[%emt 00:00:38]} 28. Rg5
{[%clk 01:06:03]} {[%emt 00:00:59]} 1-0

[Event "SS Manhem Chess Week 2022: Goteborg Open"]
[Site "Schackcentrum, Vegagatan 20, Gothenburg, Sweden"]
[Date "2022.08.14"]
[Round "7.12"]
[White "Wickstrom, Lars"]
[Black "Persson, Sebastian"]
[Result "1-0"]
[TimeControl "15 minutes + 5 seconds per move from move one (Round 1 - 4) / 90 minutes + 30 seconds per move from move one (Round 5 - 8)"]
[WhiteFideId "1770837"]
[BlackFideId "1764187"]
[WhiteElo "1753"]
[BlackElo "1631"]

1. e4 {[%clk 01:30:57]} {[%emt 00:00:02]} c6 {[%clk 01:30:53]} {[%emt
00:00:07]} 2. Nc3 {[%clk 01:31:00]} {[%emt 00:00:27]} d5 {[%clk 01:29:40]}
{[%emt 00:01:44]} 3. Nf3 {[%clk 01:31:16]} {[%emt 00:00:14]} dxe4 {[%clk
01:29:53]} {[%emt 00:00:17]} 4. Nxe4 {[%clk 01:31:41]} {[%emt 00:00:05]} Nf6
{[%clk 01:30:17]} {[%emt 00:00:06]} 5. Qe2 {[%clk 01:31:23]} {[%emt 00:00:48]}
Nxe4 {[%clk 01:24:10]} {[%emt 00:06:36]} 6. Qxe4 {[%clk 01:31:47]} {[%emt
00:00:06]} Qd5 {[%clk 01:17:41]} {[%emt 00:06:59]} 7. Qxd5 {[%clk 01:29:42]}
{[%emt 00:02:35]} cxd5 {[%clk 01:18:02]} {[%emt 00:00:09]} 8. d4 {[%clk
01:20:52]} {[%emt 00:09:21]} g6 {[%clk 01:16:11]} {[%emt 00:02:20]} 9. Bf4
{[%clk 01:17:18]} {[%emt 00:04:04]} Bg7 {[%clk 01:14:54]} {[%emt 00:01:47]} 10.
O-O-O {[%clk 01:10:11]} {[%emt 00:07:37]} O-O {[%clk 01:13:43]} {[%emt
00:01:39]} 11. h3 {[%clk 01:08:09]} {[%emt 00:02:34]} Bf5 {[%clk 01:08:23]}
{[%emt 00:05:48]} 12. Nh4 {[%clk 01:04:19]} {[%emt 00:04:21]} Bd7 {[%clk
01:06:58]} {[%emt 00:01:54]} 13. g4 {[%clk 01:03:53]} {[%emt 00:00:57]} Bc6
{[%clk 01:06:17]} {[%emt 00:01:11]} 14. Nf3 {[%clk 00:59:59]} {[%emt 00:04:25]}
Nd7 {[%clk 01:04:35]} {[%emt 00:02:10]} 15. Rg1 {[%clk 00:46:42]} {[%emt
00:13:48]} f6 {[%clk 01:00:08]} {[%emt 00:04:57]} 16. Be3 {[%clk 00:36:34]}
{[%emt 00:10:38]} Rae8 {[%clk 00:54:01]} {[%emt 00:06:39]} 17. g5 {[%clk
00:31:06]} {[%emt 00:05:56]} e5 {[%clk 00:51:38]} {[%emt 00:02:53]} 18. gxf6
{[%clk 00:29:15]} {[%emt 00:02:21]} Bxf6 {[%clk 00:51:50]} {[%emt 00:00:17]} 19.
dxe5 {[%clk 00:27:47]} {[%emt 00:02:00]} Nxe5 {[%clk 00:49:57]} {[%emt
00:02:23]} 20. Nd4 {[%clk 00:27:29]} {[%emt 00:00:48]} Bh4 {[%clk 00:47:17]}
{[%emt 00:03:09]} 21. Nxc6 {[%clk 00:26:26]} {[%emt 00:01:33]} bxc6 {[%clk
00:47:01]} {[%emt 00:00:42]} 22. Bxa7 {[%clk 00:24:42]} {[%emt 00:02:17]} Ra8
{[%clk 00:43:24]} {[%emt 00:04:07]} 23. Bc5 {[%clk 00:24:08]} {[%emt 00:01:04]}
Rf7 {[%clk 00:25:59]} {[%emt 00:17:55]} 24. Kb1 {[%clk 00:21:39]} {[%emt
00:03:00]} Bxf2 {[%clk 00:23:01]} {[%emt 00:03:27]} 25. Bxf2 {[%clk 00:22:04]}
{[%emt 00:00:06]} Rxf2 {[%clk 00:23:25]} {[%emt 00:00:05]} 26. Rg2 {[%clk
00:20:24]} {[%emt 00:02:10]} Rf3 {[%clk 00:22:10]} {[%emt 00:01:44]} 27. Re2
{[%clk 00:17:14]} {[%emt 00:03:41]} Nc4 {[%clk 00:11:56]} {[%emt 00:10:44]} 28.
Bg2 {[%clk 00:14:16]} {[%emt 00:03:29]} Rg3 {[%clk 00:08:09]} {[%emt 00:04:17]}
29. Rd3 {[%clk 00:13:42]} {[%emt 00:01:04]} Rg5 {[%clk 00:08:14]} {[%emt
00:00:24]} 30. b3 {[%clk 00:13:04]} {[%emt 00:01:08]} Na3+ {[%clk 00:07:28]}
{[%emt 00:01:17]} 31. Kb2 {[%clk 00:13:15]} {[%emt 00:00:20]} h5 {[%clk
00:06:31]} {[%emt 00:01:26]} 32. Rc3 {[%clk 00:10:59]} {[%emt 00:02:46]} Nb5
{[%clk 00:04:57]} {[%emt 00:02:04]} 33. Rc5 {[%clk 00:09:13]} {[%emt 00:02:16]}
Rf8 {[%clk 00:04:19]} {[%emt 00:01:07]} 34. a4 {[%clk 00:07:57]} {[%emt
00:01:46]} Na7 {[%clk 00:04:01]} {[%emt 00:00:48]} 35. c4 {[%clk 00:07:07]}
{[%emt 00:01:20]} Rb8 {[%clk 00:01:37]} {[%emt 00:02:54]} 36. cxd5 {[%clk
00:04:12]} {[%emt 00:03:25]} cxd5 {[%clk 00:02:05]} {[%emt 00:00:02]} 37. Rc7
{[%clk 00:03:51]} {[%emt 00:00:52]} Ra8 {[%clk 00:00:33]} {[%emt 00:02:02]} 38.
Rd7 {[%clk 00:04:05]} {[%emt 00:00:15]} 1-0

[Event "SS Manhem Chess Week 2022: Goteborg Open"]
[Site "Schackcentrum, Vegagatan 20, Gothenburg, Sweden"]
[Date "2022.08.14"]
[Round "7.15"]
[White "Ghaderi, Noan"]
[Black "Kosmidis, Thomas"]
[Result "0-1"]
[TimeControl "15 minutes + 5 seconds per move from move one (Round 1 - 4) / 90 minutes + 30 seconds per move from move one (Round 5 - 8)"]
[WhiteFideId "1747096"]
[BlackFideId "1753380"]
[WhiteElo "1367"]
[BlackElo "1673"]

1. d4 {[%clk 01:30:56]} {[%emt 00:00:04]} Nf6 {[%clk 01:30:45]} {[%emt
00:00:15]} 2. c4 {[%clk 01:30:57]} {[%emt 00:00:28]} e6 {[%clk 01:30:57]}
{[%emt 00:00:17]} 3. Bg5 {[%clk 01:30:33]} {[%emt 00:00:55]} d5 {[%clk
01:30:42]} {[%emt 00:00:45]} 4. e3 {[%clk 01:30:42]} {[%emt 00:00:21]} Nbd7
{[%clk 01:29:42]} {[%emt 00:01:30]} 5. Nf3 {[%clk 01:29:00]} {[%emt 00:02:13]}
c6 {[%clk 01:29:07]} {[%emt 00:01:05]} 6. Bd3 {[%clk 01:26:56]} {[%emt
00:02:34]} Bb4+ {[%clk 01:27:56]} {[%emt 00:01:39]} 7. Nbd2 {[%clk 01:27:03]}
{[%emt 00:00:25]} dxc4 {[%clk 01:23:52]} {[%emt 00:04:34]} 8. Bxc4 {[%clk
01:27:07]} {[%emt 00:00:26]} O-O {[%clk 01:16:26]} {[%emt 00:07:57]} 9. O-O
{[%clk 01:25:39]} {[%emt 00:01:58]} b6 {[%clk 01:10:56]} {[%emt 00:06:00]} 10.
Ne4 {[%clk 01:17:23]} {[%emt 00:08:45]} Be7 {[%clk 01:10:21]} {[%emt 00:01:06]}
11. Nxf6+ {[%clk 01:16:14]} {[%emt 00:01:39]} Bxf6 {[%clk 01:10:06]} {[%emt
00:00:45]} 12. Bxf6 {[%clk 01:10:52]} {[%emt 00:05:53]} Qxf6 {[%clk 01:09:44]}
{[%emt 00:00:51]} 13. Qc2 {[%clk 01:08:09]} {[%emt 00:03:13]} Bb7 {[%clk
01:09:52]} {[%emt 00:00:23]} 14. Bd3 {[%clk 01:05:03]} {[%emt 00:03:35]} h6
{[%clk 01:09:30]} {[%emt 00:00:51]} 15. Nd2 {[%clk 01:03:58]} {[%emt 00:01:36]}
Qe7 {[%clk 01:01:33]} {[%emt 00:08:26]} 16. Be4 {[%clk 00:59:50]} {[%emt
00:04:38]} Nf6 {[%clk 00:57:48]} {[%emt 00:04:15]} 17. Bf3 {[%clk 00:58:11]}
{[%emt 00:02:09]} Rac8 {[%clk 00:56:11]} {[%emt 00:02:02]} 18. Rac1 {[%clk
00:55:50]} {[%emt 00:02:56]} c5 {[%clk 00:56:30]} {[%emt 00:00:11]} 19. Bxb7
{[%clk 00:55:42]} {[%emt 00:00:39]} Qxb7 {[%clk 00:56:46]} {[%emt 00:00:13]} 20.
dxc5 {[%clk 00:53:53]} {[%emt 00:02:20]} Rxc5 {[%clk 00:56:29]} {[%emt
00:00:47]} 21. Qa4 {[%clk 00:52:40]} {[%emt 00:01:41]} Rg5 {[%clk 00:56:45]}
{[%emt 00:00:15]} 22. f3 {[%clk 00:48:54]} {[%emt 00:04:17]} Nd5 {[%clk
00:44:55]} {[%emt 00:12:20]} 23. Kf2 {[%clk 00:41:45]} {[%emt 00:07:38]} b5
{[%clk 00:37:56]} {[%emt 00:07:30]} 24. Qb3 {[%clk 00:32:59]} {[%emt 00:09:16]}
a5 {[%clk 00:33:38]} {[%emt 00:04:46]} 25. Rc5 {[%clk 00:25:18]} {[%emt
00:08:13]} Rb8 {[%clk 00:32:23]} {[%emt 00:01:47]} 26. Ne4 {[%clk 00:21:25]}
{[%emt 00:04:21]} a4 {[%clk 00:29:30]} {[%emt 00:03:23]} 27. Qa3 {[%clk
00:20:49]} {[%emt 00:01:06]} Rg6 {[%clk 00:29:20]} {[%emt 00:00:39]} 28. b4
{[%clk 00:20:36]} {[%emt 00:00:43]} axb3 {[%emt 00:00:37]} 29. Qxb3 {[%emt
00:00:55]} Qa7 {[%clk 00:26:10]} {[%emt 00:02:06]} 30. Rfc1 {[%clk 00:18:53]}
{[%emt 00:02:15]} Ra8 {[%clk 00:22:15]} {[%emt 00:04:25]} 31. Rc8+ {[%clk
00:17:40]} {[%emt 00:01:43]} Rxc8 {[%clk 00:21:07]} {[%emt 00:01:38]} 32. Rxc8+
{[%clk 00:18:09]} {[%emt 00:00:01]} Kh7 {[%clk 00:21:27]} {[%emt 00:00:10]} 33.
h4 {[%clk 00:12:50]} {[%emt 00:05:49]} Nxe3 {[%clk 00:17:13]} {[%emt 00:04:44]}
34. Rc5 {[%clk 00:10:15]} {[%emt 00:03:05]} f5 {[%clk 00:14:29]} {[%emt
00:03:14]} 35. h5 {[%clk 00:10:45]} Rxg2+ {[%clk 00:14:23]} {[%emt 00:00:37]}
36. Kxe3 {[%clk 00:09:20]} {[%emt 00:01:54]} fxe4 {[%clk 00:14:00]} {[%emt
00:00:53]} 0-1

[Event "SS Manhem Chess Week 2022: Goteborg Open"]
[Site "Schackcentrum, Vegagatan 20, Gothenburg, Sweden"]
[Date "2022.08.14"]
[Round "7.16"]
[White "Karlsson, Stefan"]
[Black "Andreasson, Henrik"]
[Result "1-0"]
[TimeControl "15 minutes + 5 seconds per move from move one (Round 1 - 4) / 90 minutes + 30 seconds per move from move one (Round 5 - 8)"]
[WhiteFideId "1771183"]
[BlackFideId "1766082"]
[WhiteElo "1560"]
[BlackElo "1126"]

1. e4 {[%clk 01:30:55]} {[%emt 00:00:03]} c5 {[%clk 01:30:33]} {[%emt
00:00:28]} 2. Nf3 {[%clk 01:31:21]} {[%emt 00:00:04]} d6 {[%clk 01:30:46]}
{[%emt 00:00:18]} 3. c3 {[%clk 01:31:42]} {[%emt 00:00:08]} Nc6 {[%clk
01:28:56]} {[%emt 00:02:20]} 4. d4 {[%clk 01:31:48]} {[%emt 00:00:23]} cxd4
{[%clk 01:27:51]} {[%emt 00:01:36]} 5. cxd4 {[%clk 01:31:24]} {[%emt 00:00:54]}
Bg4 {[%clk 01:27:42]} {[%emt 00:00:40]} 6. d5 {[%clk 01:31:28]} {[%emt
00:00:26]} Bxf3 {[%clk 01:27:44]} {[%emt 00:00:28]} 7. Qxf3 {[%clk 01:27:00]}
{[%emt 00:04:58]} Nd4 {[%clk 01:20:50]} {[%emt 00:07:23]} 8. Qc3 {[%clk
01:23:27]} {[%emt 00:04:03]} Rc8 {[%clk 01:16:17]} {[%emt 00:05:04]} 9. Qxd4
{[%clk 01:22:54]} {[%emt 00:01:02]} Rxc1+ {[%clk 01:16:09]} {[%emt 00:00:38]}
10. Kd2 {[%clk 01:23:17]} {[%emt 00:00:07]} Rxf1 {[%clk 00:50:29]} {[%emt
00:25:11]} 11. Rxf1 {[%clk 01:21:48]} {[%emt 00:02:59]} Qa5+ {[%clk 00:48:57]}
{[%emt 00:02:00]} 12. Nc3 {[%clk 01:21:58]} {[%emt 00:00:23]} Nf6 {[%clk
00:47:46]} {[%emt 00:01:39]} 13. Qc4 {[%clk 01:20:34]} {[%emt 00:01:54]} Kd8
{[%clk 00:43:42]} {[%emt 00:04:34]} 14. f4 {[%clk 01:18:03]} {[%emt 00:03:01]}
g6 {[%clk 00:43:16]} {[%emt 00:00:57]} 15. e5 {[%clk 01:18:10]} {[%emt
00:00:22]} dxe5 {[%clk 00:39:38]} {[%emt 00:04:08]} 16. fxe5 {[%clk 01:18:27]}
{[%emt 00:00:13]} Bh6+ {[%clk 00:39:36]} {[%emt 00:00:33]} 17. Kc2 {[%clk
01:14:29]} {[%emt 00:04:23]} Nd7 {[%clk 00:38:57]} {[%emt 00:01:13]} 18. d6
{[%clk 01:10:26]} {[%emt 00:04:34]} Nxe5 {[%clk 00:34:30]} {[%emt 00:04:56]} 19.
dxe7+ {[%clk 01:10:21]} {[%emt 00:00:37]} Kxe7 {[%clk 00:33:36]} {[%emt
00:01:24]} 20. Qh4+ {[%clk 01:10:09]} {[%emt 00:00:42]} f6 {[%clk 00:30:15]}
{[%emt 00:03:51]} 21. Qxf6+ {[%clk 01:10:05]} {[%emt 00:00:34]} Kd7 {[%clk
00:29:57]} {[%emt 00:00:48]} 22. Rad1+ {[%clk 01:09:53]} {[%emt 00:00:41]} Kc7
{[%clk 00:29:58]} {[%emt 00:00:30]} 23. Nd5+ {[%clk 01:09:05]} {[%emt
00:01:18]} 1-0